Cogmind - Beta 16.1 @@@ ROGUE MODE // 2026.02.22 @ 17:44:24 Player: Zish Result: Self-destructed Performance ------------- Evolutions (1) 500 Regions Visited (3) 600 Robots Destroyed (61) 305 Value Destroyed (978) 978 Prototype IDs (1) 20 Alien Tech Used (0) 0 Bonus (7) 7 TOTAL SCORE: 2410 Bonus ------- High Alert Combat Kills 15 Friendly Fire -8 Cogmind --------- Core Integrity 130/400 Matter 21/300 Energy 240/240 System Corruption 8% Temperature Cool (1) Movement Walking (120) Location -9/Materials Parts ------- > --- POWER (1) -------- Nuclear Core > --- PROPULSION (3) --- Carbon-fiber Leg > --- UTILITY (3) ------ Small Storage Unit > --- WEAPON (2) ------- (None) > --- INVENTORY (8) ---- Trap Scanner Transport Network Coupler Beam Cannon Welding Torch Great Maul Peak State ------------ > --- POWER ------------ Nuclear Core > --- PROPULSION ------- Aluminum Leg Carbon-fiber Leg > --- UTILITY ---------- Small Storage Unit Experimental Sensor Array Hardened Medium Armor Plating > --- WEAPON ----------- Flak Cannon Rocket Launcher > --- INVENTORY -------- Trap Scanner Transport Network Coupler Beam Cannon Welding Torch Great Maul [Rating: 25] Favorites ----------- Power Light Nuclear Core Engine Ion Engine Power Core Light Nuclear Core Propulsion Light Treads Treads Light Treads Leg Aluminum Leg Utility Small Storage Unit Device Experimental Sensor Array Storage Small Storage Unit Protection Hardened Medium Armor Plating Weapon Flak Cannon Energy Gun EM Pulse Gun Energy Cannon Beam Cannon Ballistic Gun Light Assault Rifle Ballistic Cannon Flak Cannon Launcher Grenade Launcher Build | -11 -10 -10 -9 ------- Run | Yrd Mat Min Mat Slots Evolved 2 | . . . 2 Power . | . . . . Propulsion 1 | . . . 1 Utility 1 | . . . 1 Weapon . | . . . . Parts Attached 24 | 6 9 5 4 Power 3 | 1 1 . 1 Engine 1 | 1 . . . Core 2 | . 1 . 1 Reactor . | . . . . Propulsion 6 | 2 1 2 1 Treads 3 | 2 1 . . Leg 3 | . . 2 1 Wheel . | . . . . Hover . | . . . . Flight . | . . . . Utility 4 | 1 1 1 1 Device 1 | . . . 1 Storage 1 | 1 . . . Processor . | . . . . Hackware . | . . . . Protection 2 | . 1 1 . Artifact . | . . . . Weapon 11 | 2 6 2 1 Energy Gun 2 | 1 1 . . Energy Cannon 2 | . 1 1 . Ballistic Gun 3 | 1 2 . . Ballistic Cannon 1 | . . 1 . Launcher 3 | . 2 . 1 Special Weapon . | . . . . Impact Weapon . | . . . . Slashing Weapon . | . . . . Piercing Weapon . | . . . . Special Melee Weapon . | . . . . Unidentified Prototypes 1 | . . . 1 Parts Lost 14 | . 4 2 8 Power 2 | . 1 . 1 Propulsion 5 | . 1 2 2 Utility 2 | . . . 2 Weapon 5 | . 2 . 3 Highest Loss Streak 3 | . 2 1 3 To Critical Strikes 1 | . 1 . . Average Backups 6 | . 4 7 6 Power 1 | . 1 1 . Propulsion . | . . . . Utility 1 | . . 2 2 Weapon 2 | . 2 3 2 Tool/Special . | . . . . Unused Backups 7 | . 1 2 4 Power 2 | . 1 1 . Propulsion . | . . . . Utility 3 | . . 1 2 Weapon 1 | . . . 1 Tool/Special 1 | . . . 1 Average Slot Usage (%) 92 | . 98 90 74 Engine 2 | . 6 . . Core 11 | . 7 14 9 Treads 17 | . 27 11 . Leg 5 | . . 7 18 Storage 13 | . 14 14 11 Protection 13 | . 12 13 10 Energy Gun 2 | . 6 . . Energy Cannon 7 | . 4 10 . Ballistic Gun 7 | . 16 1 . Ballistic Cannon 7 | . . 12 11 Launcher 2 | . . 3 11 Peak Build Rating 25 | 6 9 15 25 Average Rating 11 | 4 7 13 16 On Entrance 7 | . 6 9 15 Avg Prop Armor Cover (%) . | . . . . Naked Turns . | . . . . Heaviest Build 31 | 14 17 27 31 Greatest Support 40 | 40 40 40 25 Greatest Overweight (x) 8 | 2 2 8 3 Average Overweight (x) . | . . . 1 Largest Inventory Capacity 8 | 8 8 8 8 Average Capacity 7 | 6 8 8 8 Most Carried 8 | 1 8 8 8 Average Carried 6 | . 4 7 6 Final Capacity 8 | 8 8 8 8 Final Carried 8 | 1 6 8 5 Class Distribution -------------------- 61% | Mutant 38% | Scavenger-Mutant Dominant Class ---------------- Mutant | -10/Materials Mutant | -10/Mines Mutant | -9/Materials Resources | -11 -10 -10 -9 ----------- Run | Yrd Mat Min Mat Matter Collected 1163 | 266 341 447 109 Remotely . | . . . . Salvage Created 1368 | 95 541 511 221 Parts 103 | 2 39 25 37 Haulers Intercepted 3 | . 2 . 1 Recyclers Shooed 3 | . . . 3 Parts Field Recycled . | . . . . Retrieved Matter . | . . . . Parts Self-Destructed . | . . . . Prevented . | . . . . Parts Restored . | . . . . Kills | -11 -10 -10 -9 ------- Run | Yrd Mat Min Mat Combat Hostiles Destroyed 41 | . 11 15 15 Guns 9 | . 9 . . Cannons 18 | . 1 13 4 AOE 14 | . 1 2 11 Classes Destroyed 10 | 1 5 3 1 Worker 8 | . 3 4 1 Builder 4 | . . 2 2 Tunneler 2 | . . 1 1 Hauler 3 | . 2 . 1 Recycler 3 | 1 . 2 . Watcher 6 | . 3 . 3 Swarmer 20 | . 6 3 11 Grunt 11 | . 5 6 . Sentry 4 | . . . 4 Assembled 6 | . . 6 . Best Kill Streak 11 | 1 4 4 11 Combat Bots Only 7 | . 3 4 7 Max Kills in Single Turn 4 | 1 2 2 4 Gunslinging . | . . . . Exploded 3 | . 1 1 3 Melee . | . . . . Uniques/NPCs Destroyed . | . . . . Combat | -11 -10 -10 -9 -------- Run | Yrd Mat Min Mat Hostile Shots Fired 158 | . 71 41 46 Missed 44 | . 15 15 14 Hits 114 | . 56 26 32 Melee 1 | . . 1 . Projectile 113 | . 56 25 32 Critical Strikes 2 | . 1 . 1 Damage Taken 1964 | . 658 419 887 Core 372 | . 58 44 270 Absorbed by Shields . | . . . . Redirected to Shielding 9 | . 9 . . Core Remaining (%) 79 | 100 . 59 . Volleys Fired 134 | 2 56 48 28 Largest 2 | 2 2 2 2 Hottest 97 | 60 80 97 70 Shots Fired 252 | 4 111 90 47 Gun 112 | 4 106 2 . Cannon 113 | . 3 82 28 Launcher 27 | . 2 6 19 Special . | . . . . Kinetic 157 | 2 76 51 28 Thermal 36 | . 3 33 . Explosive 27 | . 2 6 19 Electromagnetic 32 | 2 30 . . Robot Hit Streak 9 | 2 9 8 6 Robot Miss Streak 14 | 1 3 14 10 Penetration Max . | . . . . Secondary Targets 2 | . 2 . . Max Gunslinging Chain 1 | . 1 . . Shots Hit Robots 152 | 2 68 58 24 Core Hits 136 | 2 32 58 44 Critical Kills 1 | . 1 . . Critical Parts Destroyed . | . . . . Critical Strikes 2 | . 2 . . Destroy 1 | . 1 . . Corrupt 1 | . 1 . . Melee Attacks . | . . . . Impact . | . . . . Slashing . | . . . . Piercing . | . . . . Sneak Attacks . | . . . . Combat Hostiles . | . . . . Follow-up Attacks . | . . . . Damage Inflicted 3502 | 25 818 1029 1630 Guns 710 | 25 669 16 . Cannons 1461 | . 53 950 458 Explosions 1331 | . 96 63 1172 Melee . | . . . . Ramming . | . . . . Kinetic 1551 | 10 416 667 458 Thermal 352 | . 53 299 . Explosive 1331 | . 96 63 1172 Electromagnetic 268 | 15 253 . . Impact . | . . . . Slashing . | . . . . Piercing . | . . . . Highest Corruption 2 | . 2 2 . Average Corruption 2 | . 2 2 . Corruption Purged . | . . . . Corruption Blocked . | . . . . Effects 44 | . 8 36 . Message Errors 14 | . 3 11 . Matter Fused 9 | . 2 7 . Heat Flow Errors 3 | . 1 2 . Energy Discharges 5 | . 1 4 . Parts Fused 1 | . . 1 . Data Loss (minor) 5 | . 1 4 . Data Loss (major) 1 | . . 1 . Misfires 4 | . . 4 . Alerts 1 | . . 1 . Weapon Failures 1 | . . 1 . Overload Shots . | . . . . Overflow Damage 18 | . . 11 7 Projectiles 2 | . . . 2 Explosions 16 | . . 11 5 Melee . | . . . . Knockbacks 28 | . . 26 2 Impact . | . . . . Kinetic 28 | . . 26 2 Secondary . | . . . . Self-Inflicted Damage 239 | . 38 74 127 Shots 8 | . 1 2 5 Rammed . | . . . . Targets Rammed . | . . . . Kicked . | . . . . Crushed . | . . . . Highest Temperature 345 | . 157 345 88 Average Temperature 85 | . 30 116 27 Received Heat Transfer 531 | . 273 99 159 Effects 2 | . . 2 . Energy Bleed 1 | . . 1 . Interference 1 | . . 1 . Siege Activations . | . . . . Martial Activations . | . . . . Shielding Activations . | . . . . Robots Disrupted . | . . . . Combat Hostiles . | . . . . Robots Corrupted . | . . . . Combat Hostiles . | . . . . Parts Fried 1 | . 1 . . Impact Corruptions . | . . . . Robots Melted . | . . . . Combat Hostiles . | . . . . Parts Melted . | . . . . Heat Transferred 740 | . 111 629 . Parts Sabotaged . | . . . . Parts Stolen . | . . . . Parts Stripped . | . . . . Power Chain Reactions . | . . . . Alert | -11 -10 -10 -9 ------- Run | Yrd Mat Min Mat Maximum Alert Level 2 | . . . 2 Low Security (%) 96 | 100 100 100 36 Level 1 2 | . . . 41 Level 2 1 | . . . 21 Level 3 . | . . . . Level 4 . | . . . . Level 5 . | . . . . High Security . | . . . . Max Security . | . . . . Peak Influence 447 | 5 151 76 447 Initial 13 | . . . 13 Average 31 | . 33 10 223 Influence Increases 1237 | 5 347 299 586 Destroy 0b10 Robot/C 700 | . 220 180 300 Destroy 0b10 Robot/NC 130 | 5 40 45 40 Destroy Leader 168 | . 50 40 78 Successful Hack 11 | . 11 . . Disable Machine 15 | . . . 15 Destroy Structure 198 | . 11 34 153 Lose Combat Pursuer 15 | . 15 . . Influence Decreases 811 | 5 347 264 195 Entered New Map 22 | . . . 22 Time Decay 677 | 5 307 262 103 Lost Part 112 | . 40 2 70 Squads Dispatched 4 | . 2 1 1 Investigation 3 | . 2 1 . Extermination . | . . . . Reinforcement 1 | . . . 1 Assault . | . . . . Garrison . | . . . . Intercept . | . . . . Searches Triggered . | . . . . Construction Impeded 1 | . . . 1 Haulers Reinforced . | . . . . Active Scanning Responses . | . . . . Cargo Convoy Interrupts . | . . . . Stealth | -11 -10 -10 -9 --------- Run | Yrd Mat Min Mat Distress Signals 4 | . . . 4 Communications Jammed . | . . . . Distress Signals . | . . . . Times Spotted 64 | . 17 26 21 Peak Tracking Total 17 | . 4 17 6 Tactical Retreats 2 | . 1 1 . Traps | -11 -10 -10 -9 ------- Run | Yrd Mat Min Mat Traps Triggered 6 | . 6 . . Indirectly . | . . . . Trap Hack Attempts . | . . . . Triggered . | . . . . Disarmed . | . . . . Reprogrammed . | . . . . Reused . | . . . . Traps Extracted . | . . . . Installed . | . . . . Triggered . | . . . . Machines | -11 -10 -10 -9 ---------- Run | Yrd Mat Min Mat Machines Disabled 1 | . . . 1 Max in Single Turn 1 | . . . 1 Machines Repaired . | . . . . Machines Dismantled . | . . . . Machines Sabotaged . | . . . . Overloaded Fab Kills . | . . . . Hacking | -11 -10 -10 -9 --------- Run | Yrd Mat Min Mat Machines Accessed 7 | . 5 2 . Terminals 5 | . 4 1 . Fabricators . | . . . . Repair Stations . | . . . . Recycling Units 1 | . 1 . . Scanalyzers . | . . . . Garrison Access . | . . . . Total Hacks 12 | . 10 2 . Successful 7 | . 5 2 . Failed 5 | . 5 . . Catastrophic . | . . . . Database Lockouts . | . . . . Manual 2 | . 1 1 . Terminals 8 | . 7 1 . Fabricators . | . . . . Repair Stations . | . . . . Recycling Units 3 | . 3 . . Scanalyzers . | . . . . Garrison Access . | . . . . Terminal Hacks 3 | . 2 1 . Open Door 1 | . . 1 . Alert Level 1 | . 1 . . Hauler Manifests 1 | . 1 . . Fabricator Hacks . | . . . . Repair Station Hacks . | . . . . Recycling Unit Hacks 2 | . 2 . . Retrieve Components 2 | . 2 . . Scanalyzer . | . . . . Garrison Access Hacks . | . . . . Unauthorized Hacks 2 | . 1 1 . Terminals 2 | . 1 1 . Operators 2 | . 1 1 . Fabricators . | . . . . Repair Stations . | . . . . Recycling Units . | . . . . Scanalyzers . | . . . . Garrison Access . | . . . . Data Cores Recovered . | . . . . Used . | . . . . Hacking Detections 1 | . 1 . . Full Trace Events 1 | . 1 . . Feedback Events . | . . . . Feedback Blocked . | . . . . Robot Schematics Acquired . | . . . . Robots Built . | . . . . Authchips . | . . . . Time . | . . . . Total Robot Build Rating . | . . . . Part Schematics Acquired . | . . . . Parts Built . | . . . . Authchips . | . . . . Time . | . . . . Total Part Build Rating . | . . . . Part Studies Acquired . | . . . . Parts Repaired . | . . . . Time . | . . . . Parts Recycled . | . . . . Recycled Matter . | . . . . Retrieved Matter . | . . . . Retrieved Components . | . . . . Parts Scanalyzed . | . . . . Part Schematics Acquired . | . . . . Parts Damaged . | . . . . Bothacking | -11 -10 -10 -9 ------------ Run | Yrd Mat Min Mat Used RIF Installer . | . . . . Robots Hacked . | . . . . Non-combat . | . . . . Combat . | . . . . Robot Hacks Applied . | . . . . Relay Couplers Released . | . . . . Fabnet Peak Effective % . | . . . . Robots Rewired . | . . . . Allies Hacked . | . . . . Hacks Repelled . | . . . . Allies | -11 -10 -10 -9 -------- Run | Yrd Mat Min Mat Total Allies . | . . . . Largest Group . | . . . . Highest-Rated Group . | . . . . Highest-Rated Ally . | . . . . Total Orders . | . . . . Ally Attacks . | . . . . Total Damage . | . . . . Kills . | . . . . Allies Corrupted . | . . . . Allies Melted . | . . . . Intel | -11 -10 -10 -9 ------- Run | Yrd Mat Min Mat Active Infowar (turns) 58 | . . . 58 Sensors 58 | . . . 58 Robot Analysis Total . | . . . . Derelict Logs Recovered 2 | . . 2 . Drone Launches . | . . . . Drone Recoveries . | . . . . Exploration | -11 -10 -10 -9 ------------- Run | Yrd Mat Min Mat Turns Passed 4350 | 93 1629 2372 256 Spaces Moved 2052 | 51 889 1024 88 Core 16 | 10 1 5 . Treads 1639 | 41 888 710 . Legs 397 | . . 309 88 Wheels . | . . . . Hover . | . . . . Flight . | . . . . Fastest Speed 50 | 50 150 160 190 Average Speed 187 | 153 159 213 199 Slowest Speed 450 | 160 160 450 330 Overloaded Moves . | . . . . Propulsion Burnouts . | . . . . Robots Hopped . | . . . . Potential Cave-ins . | . . . . Cave-ins Triggered 1 | . . . 1 Exploration Rate (%) 54 | 5 97 91 23 Regions Visited 3 Branch Regions 1 Pre-discovered Areas . | . . . . Known Exits Taken . | . . . . Unknown Exits Taken 3 | 1 1 1 . Scrap Searched 1 | . . 1 . Spaces Dug . | . . . . Terrain Destroyed 219 | . 9 35 175 Melee . | . . . . Projectile . | . . . . AOE 219 | . 9 35 175 Terrain Rammed . | . . . . Walls Destroyed . | . . . . Machines Disabled . | . . . . Actions | -11 -10 -10 -9 --------- Run | Yrd Mat Min Mat Total 2300 | 59 990 1131 120 Wait 51 | . 14 37 . Move 2049 | 50 888 1023 88 Hop . | . . . . Pick Up 15 | 1 6 8 . Fast Attach 26 | 6 15 4 1 Attach 9 | . 4 2 3 Detach 6 | . 5 1 . Swap . | . . . . Drop 10 | . 2 8 . Fire 134 | 2 56 48 28 Melee . | . . . . Ram . | . . . . Kick . | . . . . Crush . | . . . . Escape Stasis . | . . . . Rewire . | . . . . Trap . | . . . . Miscellaneous . | . . . . Route ------- -11/Scrapyard -10/Materials (discovered 5 exits: [*Mat x3] / *Min / [*Sub]) -10/Mines (discovered 2 exits: [*Mat] / [*Sub]) -9/Materials (discovered 1 exit: Mat) History --------- Turn | Location | Event 15 | -11/Scrapyard | Discovered new exit (range 15) 94 | -11/Scrapyard | Entered Materials 208 | -10/Materials | Discovered new exit (range 9) 302 | -10/Materials | Build established: Mutant 341 | -10/Materials | Discovered new exit (range 16) 594 | -10/Materials | Derelicts attacked the area 689 | -10/Materials | Discovered new exit (range 9) 945 | -10/Materials | Discovered new exit (range 15) 1149 | -10/Materials | Build established: Scavenger-Mutant 1332 | -10/Materials | Discovered new exit (range 16) 1723 | -10/Materials | Entered Mines 1763 | -10/Mines | Discovered new exit (range 9) 1904 | -10/Mines | Learned location of 1 exit from Materials 1939 | -10/Mines | Met a Derelict shopkeep closing up shop 2221 | -10/Mines | Build established: Mutant 2568 | -10/Mines | Received a Rocket Launcher from a helpful Derelict 2570 | -10/Mines | Learned Materials machine intel 2980 | -10/Mines | Assembled infested the area 2985 | -10/Mines | Assisted by a Guerilla fighting off Assembled 3085 | -10/Mines | Found a damaged Exp. Sensor Array with a note attached 3095 | -10/Mines | Found Prototype Device 3361 | -10/Mines | Discovered new exit (range 6) 3767 | -10/Mines | Build established: Scavenger-Mutant 3828 | -10/Mines | A weapon hastily lodged in a ceiling crevice suddenly fell to the ground 4095 | -10/Mines | Entered Materials 4095 | -9/Materials | Evolved 2 slots: Propulsion x1, Utility x1 4096 | -9/Materials | Identified exit to Materials 4097 | -9/Materials | Loaded intel: 50 machine locations 4192 | -9/Materials | Identified Exp. Sensor Array 4208 | -9/Materials | Lost 3 parts (1p1n1w) 4209 | -9/Materials | Destroyed 7 combat bots 4351 | -9/Materials | Crushed by falling debris 4351 | -9/Materials | Core integrity fell below 50% 4351 | -9/Materials | Self-destructed Last Messages --------------- 04313_ K-01 Serf collects debris. 04315_ R-06 Scavenger collects Wheel. 04317_ K-01 Serf collects debris. 04317_ Y-45 Defender destroyed. 04317_ K-01 Serf collects debris. 04319_ The unstable cave ceiling collapses. 04319_ R-06 Scavenger collects Heat Sink. 04320_ K-01 Serf collects debris. 04322_ The unstable cave ceiling collapses. 04324_ Acquired 15 matter. 04325_ The unstable cave ceiling collapses. 04325_ K-01 Serf collects debris. 04343_ Hrd. Medium Armor Plating destroyed. 04344_ R-06 Scavenger collects Hover Unit. 04349_ The unstable cave ceiling collapses. 04351_ Crushed by falling debris. 04351_ Flak Cannon destroyed. 04351_ System corrupted by crushing effect (+4). 04351_ Rocket Launcher destroyed. 04351_ System corrupted by crushing effect (+4). Map ----- +----------------------------------------------------+ | ???S""????????????????# #??# """""## # | | ???""?????????????????# #??# """"" # *# | | ??????????????????????# #??# """ # ## | | ??????????????????????# #??# # %## | | ???????????????????????? ! #### # # | | ??""????????????????????## # # ## ## | | ??"Y???????????? ####### ## ### # | | ??""??????????? [ [ # | | ???????????????" ! + | | ???????????????? ! ! # | | ???????????????????##+### # !!### # | | ???????????????????# # # ### # | | ???????????????????# # ### #?# # | | ????"""????????????# # ## #?#^^ # | | ????"R"????????????# ?# * # ## #?#^ # | | ????"?"????????????# ==## ## #?? # | | ???????????????????# ==# ## #?? # | | ???????????????????# ### #?? # | | ???????????????????###### ## #?? # | | ????????????????????????# ! ############?? # | | ????????????????????????# #????????????? # | | ??""????????????????????# #????????????? ? | | ?""S????????????????????# ###????????????????? | | ?""?????????????????###### ###########?????????? | | ????????????????????# # #?????????? | | ????????????????????# "" @ #?????????? | | ????????????????????# "" # """ """???????????? | | ????????????????????# "T """ """???????????? | | ????????????????????# "" """ """???????????? | | ????????????????????# "" ?????????????? | | ????????????????????# ????????????? | | ????????????????????# = *???????????? | | ????????????????????# # ####+####??????????? | | ????????????????????##### #??????????????????? | | ??????"""???????????????? ??????????????????? | | ??????"T"????????????????# ?????????????????? | | ?????????????????????????? ?????????????????? | | ??????????????????????????#######????????????????? | | ?????????????????????????????????????????????????? | | ?????????????????????????????????????????????????? | | ?????????????????????????????????????????????????? | | ?????????????????????????????????????????????????? | | ????????????????????????????????????????T????????? | | ?????????????????????????????????????????????????? | | ??????????????????????????????????????"""????????? | | ????""""??????????????????????????????"""????????? | | ????""""??????????????????????????????"""????????? | | ????""""??"T"????????????????????????????????????? | | ??????????"""?????????????????????????"""????????? | | ??????????????????????????????????????"""????????? | +----------------------------------------------------+ Best States ------------- Heat Dissipation 28 Energy Generation 14 Energy Capacity 250 Matter Stores 300 Matter Capacity 300 Sight Range 16 Robot Scan Range 20 Terrain Scan Density 10 Armor Coverage 225 Utility Shielding 33 Evasion (%) 40 Recoil Reduction 2 Item Schematics ----------------- None Robot Schematics ------------------ None Fabricated ------------ Nothing Repaired ---------- Nothing Studied --------- None Alien Tech Used ----------------- None Achievements -------------- None Challenges ------------ None Game ------ Seed HybridSigixTurbovents Manual? 0 Play Time 00:20:15 Cumulative 27.8 hours Start 2026.02.22 @ 17:26:48 End 2026.02.22 @ 17:44:24 Sessions 1 Manual Loads 0 Difficulty Rogue Special Mode None Game No. 76 Rogue 76 Adventurer 0 Explorer 0 Win Type - Total 0 Types 0/0/0/0/0/0/0/0/0/0 Lore% 17 Gallery% 26 Achievement% 21 Wizard Run 0 Options --------- Layout 1 ASCII 0 Keyboard 1 Movement Vi Keybinds 0 Fullscreen 1 Font 24/Smallcaps Map View 50x35 Zoom Use 0% Tactical HUD 1 Map Filters NONE Filters NONE Steam 1 RUN: 1b30c53e-4002-4b31-b26d-c04388a9a89e